bitfinex/quotes_ETHUSD_20220117
["timestamp","ask_amount","ask_price","bid_price","bid_amount"]
[1642425475286,0.00284212,3274.5,3273.8,5.64113684]
[1642425475485,0.00284212,3274.5,3273.9,1.6]
[1642425475687,0.00227369,3274.4,3274.0,1.49834695]
[1642425476086,0.00170527,3274.3,3274.1,0.04908489]
[1642425476488,0.00113685,3274.2,3274.1,0.04908489]
[1642425476689,0.00113685,3274.2,3273.9,1.6]
[1642425476889,0.00454739,3274.2,3273.9,1.6]
[1642425477892,0.00454739,3274.2,3273.8,5.64113684]
[1642425478935,0.0409,3274.8,3273.9,7.6]
[1642425479135,0.0409,3274.8,3273.9,8.60511581]
[1642425479334,0.0409,3274.8,3274.0,0.00454739]
[1642425481142,0.0409,3274.8,3273.9,0.00511581]
[1642425481940,0.0409,3274.8,3274.0,0.45227696]
[1642425482140,0.0409,3274.8,3274.0,1.70607696]
[1642425482384,0.0409,3275.1,3274.5,1.39528652]
[1642425482586,2.65423838,3275.4,3275.0,1.16260222]
[1642425482587,1.55906186,3275.4,3275.0,1.16260222]
[1642425482889,1.55906186,3275.4,3275.0,1.46260222]
[1642425482890,0.00170527,3275.1,3275.0,1.46260222]
[1642425483083,0.00170527,3275.1,3275.0,1.6]
[1642425483284,0.00170527,3275.1,3275.0,1.3]
[1642425483583,0.00170527,3275.1,3275.0,0.3]
[1642425483786,0.00170527,3275.1,3274.6,0.44113685]
[1642425483985,0.00170527,3275.1,3274.6,0.74113685]
[1642425484185,0.13819997,3275.5,3274.6,0.74113685]
[1642425484387,2.72026768,3275.6,3274.6,1.04113685]
[1642425484589,0.0022737,3275.4,3274.7,0.00170527]
[1642425484787,1.2017,3275.7,3274.8,6.3]
[1642425484987,1.2017,3275.7,3274.8,0.6]
[1642425485190,0.00113684,3275.6,3274.9,1.00284212]
[1642425485587,0.00113684,3275.6,3275.2,1.17216757]
[1642425485787,0.00113684,3275.6,3275.0,0.4422737]
[1642425486043,0.00113684,3275.6,3275.0,1.0422737]
[1642425486240,0.00113684,3275.6,3275.1,0.00170527]
[1642425487441,0.00113684,3275.6,3275.1,1.44854943]
[1642425487842,4.37561352,3276.1,3275.2,0.00113685]
[1642425488046,1.2223,3276.1,3275.2,0.00227369]
[1642425488343,0.0022737,3276.0,3275.2,0.00227369]
[1642425488742,0.00170528,3275.9,3275.2,0.00227369]
[1642425489143,0.00113685,3275.8,3275.2,0.00227369]
[1642425490586,0.00113685,3275.8,3275.2,2.523782]
[1642425490984,0.00113685,3275.8,3275.3,1.30170527]
[1642425491186,0.00113685,3275.8,3275.3,0.60170527]
[1642425491488,0.00113685,3275.8,3275.4,0.00113684]
[1642425491887,0.00113685,3275.8,3275.3,1.00170527]
[1642425492088,0.00113685,3275.8,3275.6,1.52846718]
[1642425492488,0.00113685,3275.8,3275.6,1.82846718]
[1642425493391,0.00113685,3275.8,3275.6,0.3]
[1642425493640,0.00113685,3275.8,3275.4,2.86511267]
[1642425493938,0.00113685,3275.8,3275.4,0.30113684]
[1642425494140,0.00113685,3275.8,3275.4,0.00113684]
[1642425494539,0.00113685,3275.8,3275.4,1.267108]
[1642425495440,0.00113685,3275.8,3275.4,3.87090488]
[1642425495641,0.00113685,3275.8,3275.5,1.44]
[1642425495845,0.00113685,3275.8,3275.5,1.74]
[1642425496042,0.00113685,3275.8,3275.5,2.04]
[1642425496444,0.00113685,3275.8,3275.6,0.76292]
[1642425496744,0.00113685,3275.8,3275.6,1.20292]
[1642425496943,2.60979735,3276.6,3275.7,0.3]
[1642425497283,0.00397897,3276.5,3275.7,0.3]
[1642425497794,2.60979735,3276.6,3275.7,0.3]
[1642425497795,0.00341054,3276.4,3275.7,0.3]
[1642425498192,0.00284212,3276.3,3275.9,1.13837007]
[1642425498494,0.00284212,3276.3,3276.1,0.3]
[1642425498690,2.60979735,3276.4,3276.1,0.3]
[1642425498691,0.0022737,3276.2,3276.1,0.3]
[1642425499490,0.0022737,3276.2,3276.0,0.3]
[1642425499693,0.0022737,3276.2,3275.8,1.82587]
[1642425499891,0.00170527,3276.1,3275.8,1.82587]
[1642425500290,0.00113685,3276.0,3275.8,1.82587]
[1642425508296,0.00113685,3276.0,3275.5,1.52613]
[1642425508543,0.00113685,3276.0,3275.4,0.00113684]
[1642425508736,0.00113685,3276.0,3275.6,0.00113684]
[1642425508939,0.00113685,3276.0,3275.4,0.00227369]
[1642425510135,0.00113685,3276.0,3275.4,0.30227369]
[1642425510537,0.00113685,3276.0,3275.5,0.00170527]
[1642425512389,0.00113685,3276.0,3275.5,0.76478527]
[1642425512789,0.00113685,3276.0,3275.6,0.30113685]
[1642425515094,0.00113685,3276.0,3275.6,0.00113685]
[1642425515494,0.00113685,3276.0,3275.5,0.00170527]
[1642425515794,0.00113685,3276.0,3275.0,0.00454739]
[1642425516434,1.55578879,3276.0,3275.0,0.00454739]
[1642425517939,1.18254488,3275.7,3275.0,0.00454739]
[1642425518139,1.55465194,3275.8,3275.0,0.00454739]
[1642425519039,2.60979735,3275.6,3275.0,0.00454739]
[1642425519987,1.55465194,3275.7,3275.0,0.00454739]
[1642425520991,1.55465194,3275.8,3275.0,0.00454739]
[1642425521895,2.60979735,3275.6,3275.0,0.00454739]
[1642425522694,1.55465194,3275.6,3275.0,0.00454739]
[1642425526341,1.55465194,3275.5,3275.0,0.00454739]
[1642425528696,1.55465194,3275.6,3275.0,0.00454739]
[1642425529701,1.55465194,3275.7,3275.0,0.00454739]
[1642425530301,1.55465194,3275.7,3274.5,4.8833]
[1642425530302,1.55465194,3275.7,3274.8,0.00568423]
[1642425530499,2.60635194,3275.7,3274.8,0.00568423]
[1642425530696,1.55465194,3275.5,3274.6,0.00682108]
[1642425530896,1.55465194,3275.5,3274.5,0.0073895]
[1642425530897,1.18776522,3275.3,3274.5,0.0073895]
[1642425531150,2.31813194,3275.5,3274.4,0.00795793]
[1642425531549,2.31813194,3275.5,3274.3,0.00852635]
[1642425531951,1.55465194,3275.1,3274.3,0.00852635]
[1642425532550,1.55465194,3275.1,3274.1,0.0096632]
[1642425533152,1.55465194,3275.1,3274.0,0.01023162]
[1642425533451,1.21885962,3275.0,3274.0,0.01023162]
[1642425534059,1.55465194,3275.1,3274.0,0.01023162]
[1642425534451,1.55465194,3275.1,3273.9,0.01080004]
[1642425534934,2.60979735,3274.9,3273.9,0.01080004]
[1642425535136,3.98508668,3274.9,3273.9,0.01080004]
[1642425536138,2.60979735,3274.8,3273.9,0.01080004]
[1642425538043,8.44558635,3275.0,3273.9,0.01080004]
[1642425538646,7.29312745,3275.0,3273.9,0.01080004]
[1642425538846,7.29312745,3275.0,3273.9,1.35040517]
[1642425539044,2.60979735,3274.7,3273.9,1.35040517]
[1642425539245,2.60979735,3274.7,3274.0,0.01023162]
[1642425539648,2.60979735,3274.7,3274.1,0.76345]
[1642425539849,5.73847551,3275.0,3274.1,0.76345]
[1642425540150,5.73847551,3275.0,3274.2,0.30909477]
[1642425540545,5.73847551,3275.0,3274.3,0.00852635]
[1642425541047,5.73847551,3275.0,3274.3,0.74852635]
[1642425541248,5.73847551,3275.0,3274.5,0.76324]
[1642425541446,5.73847551,3275.0,3274.6,4.21370953]
[1642425541649,5.73847551,3275.0,3274.7,1.0]
[1642425541848,5.73847551,3275.0,3274.7,1.74625266]
[1642425542047,5.73847551,3275.0,3274.8,0.00568423]
[1642425542495,5.73847551,3275.0,3274.9,1.8396801]
[1642425542893,1.154,3275.7,3274.9,1.84479591]
[1642425543094,2.60979735,3275.8,3274.9,1.84479591]
[1642425543297,2.60979735,3275.8,3275.0,0.76779739]
[1642425543494,2.60979735,3275.8,3275.2,0.3]
[1642425543894,2.60979735,3275.8,3275.3,0.00284212]
[1642425544094,4.16444929,3275.8,3275.3,0.00284212]
[1642425544396,4.16444929,3275.8,3275.0,0.00454739]
[1642425545900,4.16444929,3275.8,3274.8,0.00568423]
[1642425546142,18.37,3275.7,3274.8,0.00568423]
[1642425546340,1.55465194,3275.6,3274.4,0.00795793]
[1642425546541,2.7180481,3275.4,3274.1,1.42823167]
[1642425546941,2.7180481,3275.4,3274.2,0.00909477]
[1642425547341,1.55465194,3275.1,3274.2,0.00909477]
[1642425549546,1.55465194,3275.1,3274.0,0.01023162]
[1642425549812,17.93,3275.0,3274.0,0.01023162]
[1642425550012,0.44,3274.9,3274.0,0.01023162]
[1642425550217,0.44,3274.9,3273.8,0.01136847]
[1642425550218,17.93,3274.8,3273.8,0.01136847]
[1642425550417,0.44,3274.7,3273.7,0.01193689]
[1642425550622,17.93,3274.6,3273.7,0.01193689]
[1642425550816,18.37,3274.6,3273.7,0.01193689]
[1642425551017,0.44,3274.6,3273.6,0.01250531]
[1642425551615,7.29312745,3274.5,3273.6,0.01250531]
[1642425552015,7.29312745,3274.5,3273.6,0.31250531]
[1642425552417,8.54785101,3274.5,3273.7,0.01193689]
[1642425552619,19.1337433,3274.4,3273.7,0.01193689]
[1642425552818,19.4126433,3274.4,3273.7,0.01193689]
[1642425553020,17.93,3274.3,3273.7,0.01193689]
[1642425553225,0.44,3274.2,3273.5,0.01307374]
[1642425553422,17.93,3274.1,3273.5,0.01307374]
[1642425553644,1.5197,3274.2,3273.5,0.01307374]
[1642425553842,2.28349,3274.2,3273.5,0.01307374]
[1642425554649,1.55465194,3274.1,3273.5,0.01307374]
[1642425555650,2.60979735,3274.1,3273.5,0.01307374]
[1642425560199,20.53979735,3274.1,3273.5,0.01307374]
[1642425560400,2.60979735,3274.1,3273.5,0.01307374]
[1642425561460,2.60979735,3274.2,3273.5,0.01307374]
[1642425561659,3.04979735,3274.2,3273.5,0.01307374]
[1642425562260,17.93,3274.1,3273.5,0.01307374]
[1642425562462,18.9726,3274.1,3273.5,0.01307374]
[1642425562664,1.0426,3274.1,3273.5,0.01307374]
[1642425563864,2.60979735,3274.0,3273.5,0.01307374]
[1642425566909,2.60979735,3274.1,3273.5,0.01307374]
[1642425568109,24.90654734,3274.0,3272.6,1.2382]
[1642425568310,1.9677531,3273.9,3272.6,1.2382]
[1642425568542,3.09654734,3273.9,3272.7,0.00454739]
[1642425568746,0.00170527,3273.8,3272.7,0.00454739]
[1642425569049,0.44,3273.9,3272.7,0.00454739]
[1642425569050,0.44113685,3273.7,3272.7,0.00454739]
[1642425569247,2.32754804,3273.2,3272.7,0.00454739]
[1642425569447,2.32754804,3273.2,3272.2,0.62206697]
[1642425569448,4.78798804,3273.2,3272.3,0.00682108]
[1642425570248,4.78798804,3273.2,3272.2,0.0073895]
[1642425570551,3.39324828,3273.2,3272.2,0.0073895]
[1642425571351,5.35982882,3273.1,3272.2,0.0073895]
[1642425571554,2.60979735,3273.1,3272.2,0.0073895]
[1642425571948,5.38634542,3273.1,3272.2,0.0073895]
[1642425572150,2.60979735,3273.1,3272.2,0.0073895]
[1642425572399,7.39903261,3273.1,3272.2,0.0073895]
[1642425572602,3.04979735,3273.1,3272.2,0.0073895]
[1642425573702,2.60979735,3273.0,3272.2,0.0073895]
[1642425574701,2.60979735,3273.0,3272.2,0.7712595]
[1642425575102,2.60979735,3273.0,3272.3,0.00682108]
[1642425575604,2.60979735,3273.2,3272.9,1.1557218]
[1642425575804,9.735e-05,3273.2,3273.0,0.01285543]
[1642425576048,9.735e-05,3273.2,3273.0,0.01569755]
[1642425576247,9.735e-05,3273.2,3273.1,0.00227369]
[1642425576652,0.00113685,3273.7,3273.1,0.00227369]
[1642425576850,0.00113685,3273.7,3273.1,0.60227369]
[1642425577252,0.00113685,3273.7,3273.2,0.00170527]
[1642425580701,0.00113685,3273.7,3273.1,0.00227369]
[1642425590006,0.00113685,3273.7,3272.6,0.00511581]
[1642425591050,0.00113685,3273.7,3272.6,0.30511581]
[1642425591456,0.00113685,3273.7,3272.6,0.00511581]
[1642425591851,0.00113685,3273.7,3272.3,5.94479624]
[1642425591852,4.58032722,3273.7,3272.4,0.00625266]
[1642425592459,1.55578879,3273.7,3272.5,0.76379]
[1642425592655,1.55578879,3273.7,3272.5,1.20379]
[1642425592656,1.55465194,3273.6,3272.5,1.20379]
[1642425592856,1.55465194,3273.6,3272.6,0.30511581]
[1642425593055,1.55465194,3273.6,3272.6,0.60511581]
[1642425593455,1.55465194,3273.6,3272.6,0.30511581]
[1642425593958,0.00113685,3273.7,3272.9,0.76365]
[1642425594161,0.00113685,3273.7,3272.9,1.06365]
[1642425594361,0.00113685,3273.7,3273.0,0.00284212]
[1642425598009,0.00113685,3273.7,3273.2,1.38131988]
[1642425598310,0.00113685,3273.7,3273.3,2.84188925]
[1642425598553,0.00113685,3273.7,3273.4,1.0]
[1642425598756,0.00113685,3273.7,3273.5,3.21418412]
[1642425598955,0.00113685,3273.7,3273.6,8.11962214]
[1642425599354,0.00113685,3273.7,3273.6,9.11962214]
[1642425599558,0.00113685,3273.7,3273.6,5.22571627]
[1642425601556,0.00113685,3273.7,3273.6,9.77571627]
[1642425602613,0.00113685,3273.7,3273.6,20.92571627]
[1642425602815,1.55465194,3274.7,3273.7,11.7]
[1642425603010,1.55465194,3274.7,3273.8,5.7519995]
[1642425603212,0.00511581,3274.6,3273.8,5.7519995]
[1642425603512,0.00511581,3274.6,3273.8,6.0519995]
[1642425603710,0.00454739,3274.5,3273.8,6.0519995]
[1642425604111,0.00397896,3274.4,3273.8,5.7519995]
[1642425604512,0.00341054,3274.3,3273.8,5.7519995]
[1642425604913,0.00284212,3274.2,3273.8,6.0519995]
[1642425605314,0.00227369,3274.1,3273.8,6.0519995]
[1642425605811,0.00170527,3274.0,3273.8,6.0519995]
[1642425606353,2.61141444,3274.3,3273.9,2.56458728]
[1642425606556,2.61141444,3274.3,3274.0,1.0]
[1642425606754,2.61482498,3274.3,3274.0,1.0]
[1642425607154,0.00341054,3274.3,3274.0,1.3]
[1642425607359,0.00341054,3274.3,3274.0,2.8267]
[1642425608162,0.00341054,3274.3,3274.0,1.8267]
[1642425609460,0.00341054,3274.3,3274.0,0.3]
[1642425617155,0.00341054,3274.3,3274.0,1.8269]
[1642425617609,0.00341054,3274.3,3274.0,1.5269]
[1642425618610,0.00341054,3274.3,3274.0,4.12354141]
[1642425618808,0.00341054,3274.3,3274.1,2.51836342]
[1642425619030,2.61482498,3274.3,3274.1,3.51836342]
[1642425619407,2.61482498,3274.3,3274.1,1.0]
[1642425619610,2.61482498,3274.3,3274.0,5.39193137]
[1642425619811,2.61482498,3274.3,3274.0,4.39193137]
[1642425620010,2.61482498,3274.3,3274.1,1.0]
[1642425620210,5.24005194,3275.0,3274.2,1.11729773]
[1642425620411,3.6854,3275.0,3274.4,0.76335]
[1642425620610,0.00341054,3274.9,3274.4,0.76335]
[1642425620813,0.00341054,3274.9,3274.5,0.3]
[1642425621052,0.00284212,3274.8,3274.5,0.3]
[1642425621452,0.00227369,3274.7,3274.5,0.3]
[1642425621852,0.00170527,3274.6,3274.5,0.3]
[1642425623059,0.00170527,3274.6,3274.0,1.5269]
[1642425623258,0.00170527,3274.6,3274.0,1.8269]
[1642425623463,0.00113685,3274.5,3274.1,0.00113684]
[1642425626410,0.44,3274.4,3273.6,0.30397896]
[1642425626810,0.44,3274.4,3273.7,0.00341054]
[1642425627209,1.99465194,3274.4,3273.7,0.00341054]
[1642425627415,1.99465194,3274.4,3273.7,0.76703054]
[1642425627813,1.99465194,3274.4,3273.8,0.30284212]
[1642425628214,0.44,3274.4,3273.9,0.00227369]
[1642425628957,1.2037273,3274.4,3273.9,0.00227369]
[1642425629157,19.1337273,3274.4,3273.9,0.00227369]
[1642425629357,2.75837924,3274.4,3273.9,0.00227369]
[1642425629759,2.75837924,3274.4,3273.4,0.00511581]
[1642425629959,2.75837924,3274.4,3273.2,0.00625266]
[1642425630160,20.68837924,3274.4,3273.2,0.00625266]
[1642425630359,2.75837924,3274.4,3273.5,27.0]
[1642425630561,1.55465194,3274.3,3273.6,0.3]
[1642425630761,1.55465194,3274.3,3273.6,0.30397896]
[1642425630961,1.55465194,3274.3,3273.7,0.00341054]
[1642425632168,19.48465194,3274.3,3273.7,0.76704054]
[1642425632410,1.55465194,3274.3,3273.7,0.00341054]
[1642425632612,1.55465194,3274.3,3273.8,0.00284212]
[1642425632810,1.55465194,3274.3,3273.6,0.00397896]
[1642425633010,5.05465194,3274.3,3273.6,0.00397896]
[1642425633612,5.05465194,3274.3,3273.6,0.30397896]
[1642425633815,1.55465194,3274.2,3273.6,0.30397896]
[1642425634015,1.55465194,3274.2,3273.7,0.00341054]
[1642425634814,1.55465194,3274.2,3273.7,0.76708054]
[1642425635013,1.55465194,3274.2,3273.8,0.3]
[1642425635215,1.55465194,3274.2,3273.8,0.30284212]
[1642425635414,1.55465194,3274.2,3273.9,0.00227369]
[1642425636250,1.55465194,3274.1,3273.9,0.00227369]
[1642425637252,1.55465194,3274.1,3273.7,0.00341054]
[1642425638057,1.55465194,3274.2,3273.7,0.00341054]
[1642425640602,4.16601278,3274.2,3273.7,0.00341054]
[1642425640804,1.55465194,3274.1,3273.7,0.00341054]
[1642425642308,4.16601278,3274.1,3273.7,0.00341054]
[1642425643312,1.55465194,3274.0,3273.7,0.00341054]
[1642425643755,2.8627505,3273.9,3273.7,0.00341054]
[1642425643955,2.7627505,3273.9,3273.7,0.00341054]
[1642425644357,2.7627505,3273.9,3273.1,27.00682108]
[1642425644557,2.7627505,3273.9,3273.2,0.00625266]
[1642425644958,3.81611573,3273.9,3273.2,0.00625266]
[1642425645357,6.10781283,3273.9,3273.2,0.00625266]
[1642425645560,20.54136084,3273.8,3273.2,0.00625266]
[1642425645759,2.93431135,3273.7,3273.2,0.00625266]
[1642425646059,19.1340197,3273.6,3273.2,0.00625266]
[1642425646260,2.91329593,3273.5,3273.2,0.00625266]
[1642425646458,2.91329593,3273.5,3272.7,27.0]
[1642425646459,2.91329593,3273.5,3272.8,0.30852635]
[1642425646662,17.93,3273.4,3272.8,0.30852635]
[1642425646959,17.93,3273.4,3272.9,0.00795793]
[1642425646960,2.73673387,3273.3,3272.9,0.00795793]
[1642425647409,0.7640234,3273.2,3272.9,0.00795793]
[1642425647612,4.28727836,3273.5,3272.9,0.00795793]
[1642425647811,2.61136084,3273.2,3272.9,0.00795793]
[1642425648912,2.61136084,3273.4,3272.9,0.00795793]
[1642425649512,2.61136084,3273.4,3272.9,0.77177793]
[1642425649713,2.61136084,3273.4,3273.0,1.51883283]
[1642425649913,2.61136084,3273.4,3273.0,1.82622234]
[1642425650111,2.61136084,3273.4,3273.1,0.00682108]
[1642425651759,2.61136084,3273.6,3273.1,0.00682108]
[1642425653365,2.61136084,3273.6,3273.0,0.00738951]
[1642425654165,0.0662,3273.5,3273.0,0.00738951]
[1642425655302,2.69327316,3273.5,3273.0,0.00738951]
[1642425655503,2.61136084,3273.4,3273.0,0.00738951]
[1642425655904,2.61136084,3273.4,3273.0,0.77118951]
[1642425656104,2.61136084,3273.4,3273.1,0.3]
[1642425656307,2.61136084,3273.4,3273.1,0.30682108]
[1642425656504,2.61136084,3273.4,3273.2,0.00625266]
[1642425657911,0.0662,3273.3,3273.2,0.00625266]
[1642425659158,2.67756084,3273.3,3273.2,0.00625266]
[1642425660361,2.67756084,3273.3,3273.0,0.00738951]
[1642425661162,2.61136084,3273.2,3273.0,0.00738951]
[1642425661562,0.0662,3273.1,3273.0,0.00738951]
[1642425662816,2.67756084,3273.1,3273.0,0.00738951]
[1642425672723,13.97756084,3273.1,3273.0,0.00738951]
[1642425674866,21.17756084,3273.1,3272.9,0.00795793]
[1642425675268,13.97756084,3273.1,3272.9,0.00795793]
[1642425675465,13.97756084,3273.1,3272.5,0.01023162]
[1642425675867,5.740039,3273.0,3272.5,0.01023162]
[1642425676466,0.0662,3272.9,3272.5,0.01023162]
[1642425678511,2.61136084,3272.8,3272.6,0.3]
[1642425678911,2.61136084,3272.8,3272.7,0.00909478]
[1642425679111,0.0662,3272.9,3272.7,0.00909478]
[1642425679511,0.0662,3273.1,3272.7,0.00909478]
[1642425682581,0.0662,3273.2,3272.7,0.00909478]
[1642425684583,0.0662,3273.2,3273.0,28.93664501]
[1642425684817,1.55465194,3273.5,3273.1,18.7]
[1642425685016,1.55465194,3273.5,3273.2,0.07353937]
[1642425685215,1.55465194,3273.5,3273.2,0.07979203]
[1642425685415,2.21297208,3273.8,3273.3,9.75568423]
[1642425685723,2.21297208,3273.8,3273.3,10.05568423]
[1642425685917,2.21297208,3273.8,3273.7,27.0]
[1642425686117,2.21297208,3273.8,3273.7,27.3]
[1642425686316,2.21297208,3273.8,3273.7,27.30341054]
[1642425687620,3.02472296,3274.0,3273.7,27.30341054]
[1642425687822,2.21297208,3274.4,3273.8,0.76357]
[1642425688020,2.21297208,3274.4,3273.8,0.76641212]
[1642425688323,2.21297208,3274.4,3273.9,0.00227369]
[1642425690362,2.21297208,3274.5,3273.9,0.00227369]
[1642425690662,2.21410893,3274.5,3273.9,0.00227369]
[1642425692327,0.00113685,3274.5,3273.9,0.00227369]
[1642425693118,2.21410893,3274.5,3273.9,0.00227369]
[1642425693922,2.21297208,3274.4,3273.9,0.00227369]
[1642425695121,1.55984143,3274.2,3273.9,0.00227369]
[1642425695926,2.21410893,3274.5,3273.9,0.00227369]
[1642425695927,2.21410893,3274.5,3274.4,1.12503502]
[1642425696174,2.21410893,3274.5,3274.4,1.48439037]
[1642425696368,1.23700893,3274.5,3274.4,1.78439037]
[1642425696565,1.23700893,3274.5,3274.4,0.6]
[1642425696767,1.23700893,3274.5,3274.4,0.3]
[1642425696966,3.02472296,3274.7,3274.0,0.3]
[1642425697167,3.02472296,3274.7,3274.1,1.5267]
[1642425697368,2.7000433,3275.1,3274.4,27.0]
[1642425697567,1.27113738,3275.0,3274.4,27.0]
[1642425697766,0.00113684,3274.7,3274.4,27.0]
[1642425699374,0.00113684,3274.7,3274.4,19.0401]
[1642425699375,4.36365124,3274.7,3274.4,19.0401]
[1642425699574,18.37,3274.6,3274.2,0.00170527]
[1642425699817,20.76642529,3274.5,3274.2,0.00170527]
[1642425700011,0.44,3274.4,3273.7,13.2603]
[1642425700411,0.44,3274.4,3273.8,0.00397897]
[1642425700818,2.7162792,3274.3,3273.8,0.00397897]
[1642425701017,0.44,3274.3,3273.8,0.00397897]
[1642425701617,3.05100371,3274.3,3273.8,0.00397897]
[1642425702819,2.61100371,3274.2,3273.8,0.00397897]
[1642425703018,5.51448077,3274.2,3273.8,0.00397897]
[1642425703218,2.61100371,3274.2,3273.8,0.00397897]
[1642425703865,2.61100371,3274.1,3273.8,0.00397897]
[1642425704866,2.61100371,3274.3,3273.8,0.00397897]
[1642425705866,2.74465044,3274.2,3273.8,0.00397897]
[1642425706067,4.16929472,3274.3,3273.8,0.00397897]
[1642425706466,6.96754205,3274.3,3273.8,0.00397897]
[1642425706867,2.61100371,3274.1,3273.8,0.00397897]
[1642425707754,4.16929472,3274.2,3273.8,0.00397897]
[1642425707954,4.16929472,3274.2,3273.7,0.00454739]
[1642425708153,2.7223174,3274.1,3273.7,0.00454739]
[1642425708955,2.7223174,3274.1,3273.4,0.00625266]
[1642425709356,2.61100371,3274.0,3273.4,0.00625266]
[1642425710357,1.55829101,3274.1,3273.4,0.00625266]
[1642425711166,2.61100371,3274.1,3273.4,0.00625266]
[1642425715333,1.55829101,3274.1,3273.4,0.00625266]
[1642425716333,1.55829101,3274.1,3273.4,0.76990266]
[1642425716534,1.55829101,3274.1,3273.6,0.3]
[1642425716934,1.55829101,3274.1,3273.7,0.00454739]
[1642425717237,4.16929472,3274.1,3273.7,0.00454739]
[1642425717434,4.16929472,3274.1,3273.7,1.53186739]
[1642425717635,4.16929472,3274.1,3273.8,0.3]
[1642425717934,1.55829101,3274.1,3273.9,0.00341054]
[1642425718969,1.55829101,3274.2,3273.9,0.00341054]
[1642425719972,1.55829101,3274.1,3273.9,0.00341054]
[1642425721272,39.00924962,3274.0,3273.9,0.00341054]
[1642425721477,39.44924962,3274.0,3273.9,0.00341054]
[1642425721872,39.44924962,3274.0,3272.5,1.1968]
[1642425721873,39.44924962,3274.0,3272.8,13.2603]
[1642425722075,16.8,3273.9,3272.8,13.5603]
[1642425722333,17.93,3273.7,3272.9,0.00568424]
[1642425722527,2.92500915,3273.6,3272.9,0.00568424]
[1642425723532,3.36500915,3273.6,3272.9,0.00568424]
[1642425723729,1.55829101,3273.5,3272.9,0.00568424]
[1642425723932,21.87854576,3273.4,3272.9,0.00568424]
[1642425724329,3.94854576,3273.4,3272.9,0.00568424]
[1642425725131,7.29797288,3273.3,3272.9,0.00568424]
[1642425725332,7.29797288,3273.3,3272.5,1.4968]
[1642425725333,7.29797288,3273.3,3272.6,0.00738951]
[1642425726585,2.61100371,3273.2,3272.6,0.00738951]
[1642425726790,3.37501051,3273.2,3272.6,0.00738951]
[1642425727089,4.26011051,3273.2,3272.6,0.00738951]
[1642425728189,2.70159144,3273.1,3272.6,0.00738951]
[1642425728993,5.31259515,3273.1,3272.5,0.00795793]
[1642425729191,2.61100371,3273.1,3272.5,0.00795793]
[1642425730625,20.68249626,3273.0,3272.5,0.00795793]
[1642425730923,0.44,3272.9,3272.5,0.00795793]
[1642425731323,0.7641315,3272.6,3271.6,0.01307374]
[1642425731524,0.44,3272.6,3272.4,1.37397215]
[1642425731825,2.61100371,3273.1,3272.5,0.00795793]
[1642425732424,2.61100371,3272.8,3272.5,0.00795793]
[1642425732829,2.61100371,3272.8,3272.6,13.2603]
[1642425733126,2.61100371,3272.8,3272.7,0.00682109]
[1642425733567,3.12867816,3272.9,3272.7,0.00682109]
[1642425734171,1.55829101,3273.8,3272.7,0.00682109]
[1642425735975,0.7638965,3273.6,3272.7,0.00682109]
[1642425736176,1.55829101,3273.6,3272.7,0.00682109]
[1642425736976,2.68329101,3273.7,3272.7,0.00682109]
[1642425738323,2.75252696,3273.6,3272.7,0.00682109]
[1642425738821,3.51648696,3273.6,3272.7,0.00682109]
[1642425739020,4.28037456,3273.6,3272.7,0.00682109]
[1642425739423,1.55829101,3273.4,3272.7,0.00682109]
[1642425740626,0.7639609,3273.2,3272.7,0.00682109]
[1642425741669,3.50796692,3273.2,3272.7,0.00682109]
[1642425741872,0.7639609,3273.2,3272.7,0.00682109]
[1642425742773,3.89263906,3273.2,3272.7,0.00682109]
[1642425743775,3.12867816,3273.2,3272.7,0.00682109]
[1642425744075,6.01684597,3273.5,3272.7,0.00682109]
[1642425744076,1.55829101,3273.4,3272.7,0.00682109]
[1642425744475,1.55829101,3273.4,3272.5,0.00795793]
[1642425745125,2.75744998,3273.3,3272.5,0.00795793]
[1642425745333,1.55829101,3273.3,3272.5,0.00795793]
[1642425748969,1.55829101,3273.4,3272.5,0.00795793]
[1642425749174,1.55829101,3273.4,3272.6,0.76389]
[1642425749374,1.55829101,3273.4,3272.7,0.06162203]
[1642425749575,1.55829101,3273.4,3272.7,0.00682109]
[1642425749776,1.55829101,3273.4,3272.8,0.00625266]
[1642425749975,1.55829101,3273.4,3272.7,0.00682109]
[1642425751276,2.32219231,3273.5,3272.7,0.00682109]
[1642425751877,2.32219231,3273.5,3272.5,0.00795793]
[1642425752332,5.45087047,3273.5,3272.5,0.00795793]
[1642425752523,1.5280477,3273.3,3272.5,0.00795793]
[1642425752723,2.99097157,3273.2,3272.5,0.00795793]
[1642425753022,0.7640139,3273.1,3272.5,0.00795793]
[1642425753621,1.55829101,3273.2,3272.5,0.00795793]
[1642425754624,2.6115155,3273.0,3272.5,0.00795793]
[1642425755827,2.81495452,3273.0,3272.5,0.00795793]
[1642425756472,0.7640017,3273.1,3272.5,0.00795793]
[1642425756672,2.6115155,3272.9,3272.5,0.00795793]
[1642425757274,20.95903141,3272.8,3272.5,0.00795793]
[1642425757476,21.39903141,3272.8,3272.5,0.00795793]
[1642425757675,0.7641095,3272.7,3272.3,0.00909478]
[1642425758889,2.6115155,3272.6,3272.3,0.00909478]
[1642425765476,3.01496013,3272.5,3272.3,0.00909478]
[1642425765680,24.964813,3272.4,3272.3,0.00909478]
[1642425765882,22.64,3272.4,3271.9,0.01136847]
[1642425766080,23.8866,3272.4,3271.9,0.01136847]
[1642425766280,23.8866,3272.4,3271.2,0.01534744]
[1642425767081,1.55829101,3272.2,3271.2,0.01534744]
[1642425767316,0.44,3272.1,3271.2,0.01534744]
[1642425767522,0.44,3272.1,3271.3,0.76416]
[1642425767721,0.44,3272.1,3271.3,1.06416]
[1642425767922,2.80025932,3272.0,3271.4,0.01421059]
[1642425768323,0.44,3272.1,3271.4,0.01421059]
[1642425768722,2.6115155,3272.0,3271.4,0.01421059]
[1642425768922,5.34350151,3272.0,3271.4,0.01421059]
[1642425769823,2.6115155,3272.0,3271.4,0.01421059]
[1642425770926,2.6115155,3271.9,3271.4,0.01421059]
[1642425773286,0.44,3272.1,3271.4,0.01421059]
[1642425773287,2.6115155,3272.0,3271.4,0.01421059]
[1642425774587,2.6115155,3271.8,3271.4,0.01421059]
[1642425775624,3.16983866,3272.1,3271.4,0.01421059]
[1642425775625,2.6115155,3272.0,3271.4,0.01421059]
[1642425776424,4.0,3271.8,3271.4,0.01421059]
[1642425777528,2.6115155,3272.0,3271.4,0.01421059]
[1642425777529,2.6115155,3272.0,3271.7,8.2627353]
[1642425777727,4.68696917,3272.5,3271.9,0.05336473]
[1642425777926,4.68696917,3272.5,3271.8,7.7619369]
[1642425778126,4.68696917,3272.5,3272.0,0.01080005]
[1642425778327,4.68696917,3272.5,3272.3,1.3517306]
[1642425778582,4.68696917,3272.5,3272.3,2.1156106]